bitfinex/quotes_ETHUSD_20240602
["timestamp","ask_amount","ask_price","bid_price","bid_amount"]
[1717359306909,2.71145877,3777.1,3776.4,2.648]
[1717359307108,2.71145877,3777.1,3776.6,0.56]
[1717359309396,2.64773,3776.9,3776.1,2.64822]
[1717359309624,2.2718,3776.8,3776.3,0.56]
[1717359309933,2.33544402,3776.8,3776.3,0.56]
[1717359310464,2.33544402,3776.8,3776.2,0.56]
[1717359312431,2.64782,3776.7,3775.8,5.07224]
[1717359312630,2.64782,3776.7,3776.0,0.56]
[1717359312631,2.71139194,3776.7,3776.0,0.56]
[1717359312935,2.71139194,3776.7,3775.8,5.07224]
[1717359313334,2.71139194,3776.7,3776.0,0.56]
[1717359314435,2.71139194,3776.7,3776.2,0.56]
[1717359317750,2.71139194,3776.7,3776.1,0.56]
[1717359319323,2.71139194,3776.7,3775.8,5.07224]
[1717359319536,2.71139194,3776.7,3775.8,5.579464]
[1717359319749,2.71139194,3776.7,3776.1,0.56]
[1717359320114,2.64782,3776.7,3776.1,0.56]
[1717359320454,0.06322955,3776.6,3776.1,0.56]
[1717359322218,2.64797,3776.5,3775.8,2.64844]
[1717359322424,3.0,3776.4,3775.9,0.56]
[1717359322729,3.06329715,3776.4,3775.9,0.56]
[1717359323354,0.06329715,3776.4,3776.3,0.56]
[1717359324062,2.64775,3776.8,3776.3,0.56]
[1717359324351,2.64775,3776.8,3776.5,0.56]
[1717359326456,2.2718,3776.7,3775.8,2.64844]
[1717359326824,2.2718,3776.7,3776.0,0.56]
[1717359327245,0.06322955,3776.6,3776.0,0.56]
[1717359329763,2.71116955,3776.6,3775.8,2.64844]
[1717359330123,2.71116955,3776.6,3775.8,3.20844]
[1717359330324,2.71116955,3776.6,3775.9,0.56]
[1717359330761,2.71116955,3776.6,3775.8,2.64844]
[1717359330969,2.71116955,3776.6,3776.0,0.56]
[1717359331632,2.67491235,3776.6,3776.0,0.56]
[1717359332653,2.67491235,3776.6,3775.8,2.64844]
[1717359332850,3.28206109,3776.6,3775.8,2.64844]
[1717359333051,2.64808,3776.4,3775.5,5.07245]
[1717359333377,2.64817,3776.2,3775.6,0.56]
[1717359333745,0.02685969,3776.1,3775.6,0.56]
[1717359334489,0.02685969,3776.1,3775.7,0.56]
[1717359334831,2.64817,3776.2,3775.7,0.56]
[1717359335233,0.02685969,3776.1,3775.7,0.56]
[1717359335433,2.64817,3776.2,3775.7,0.56]
[1717359335680,0.02685969,3776.0,3775.7,0.56]
[1717359335878,2.64817,3776.2,3775.7,0.56]
[1717359336237,0.02685969,3776.1,3775.7,0.56]
[1717359336483,2.2978,3776.0,3775.2,2.64886]
[1717359336657,0.02685969,3776.0,3775.4,0.56]
[1717359336839,2.64817,3776.2,3775.4,2.8126]
[1717359337039,0.02677407,3775.9,3775.4,2.8126]
[1717359337241,2.64817,3776.2,3775.4,2.8126]
[1717359337439,0.02676957,3775.8,3775.4,2.8126]
[1717359337679,2.64817,3776.2,3775.4,3.413746]
[1717359337980,0.02676957,3775.7,3775.4,2.8126]
[1717359338180,2.64817,3776.2,3775.4,2.8126]
[1717359338387,2.64837,3776.0,3775.2,2.64886]
[1717359338565,2.64837,3776.0,3775.3,0.56]
[1717359339077,0.02676957,3775.9,3775.3,0.56]
[1717359339376,0.02676957,3775.9,3775.2,2.64886]
[1717359339703,0.02676957,3775.9,3775.3,0.56]
[1717359340558,0.02676957,3775.9,3774.7,0.26906031]
[1717359340559,2.6485,3775.8,3774.8,2.3478]
[1717359340992,2.6485,3775.8,3775.3,0.56]
[1717359341301,0.02673351,3775.7,3775.3,0.56]
[1717359341507,2.6485,3775.8,3775.3,0.56]
[1717359341804,0.02655777,3775.6,3775.3,0.56]
[1717359342008,2.6485,3775.8,3775.3,0.56]
[1717359342220,2.6485,3775.8,3774.9,2.64907]
[1717359342357,0.02655777,3775.7,3775.3,0.56]
[1717359342787,2.6485,3775.8,3775.3,0.56]
[1717359343096,0.02655326,3775.6,3775.3,0.56]
[1717359343298,2.3349,3775.7,3774.9,2.64907]
[1717359343464,0.02655326,3775.5,3775.3,0.56]
[1717359343664,2.3349,3775.7,3775.3,0.56]
[1717359343916,0.02655326,3775.4,3775.3,0.56]
[1717359344059,2.3349,3775.7,3775.3,0.56]
[1717359344261,0.02655326,3775.4,3775.3,0.56]
[1717359344565,2.3349,3775.7,3775.3,0.56]
[1717359344765,0.02655326,3775.4,3775.3,0.56]
[1717359345293,2.3349,3775.7,3775.3,0.56]
[1717359345497,0.02655326,3775.4,3775.3,0.56]
[1717359345705,2.6485,3775.8,3775.3,0.56]
[1717359345903,0.02655326,3775.4,3775.3,0.56]
[1717359346067,2.6485,3775.8,3775.3,0.56]
[1717359346264,0.02655326,3775.4,3775.3,0.56]
[1717359346468,2.6485,3775.8,3775.3,0.56]
[1717359346697,0.02655326,3775.4,3775.3,0.56]
[1717359346905,2.6485,3775.8,3775.3,0.56]
[1717359347231,0.02655326,3775.4,3775.1,2.64887]
[1717359347368,2.6485,3775.8,3775.4,0.56]
[1717359347565,0.02655326,3775.7,3775.4,0.56]
[1717359347995,12.25313,3776.1,3775.4,0.56]
[1717359348207,0.02655326,3775.6,3775.4,0.56]
[1717359348436,12.25313,3776.1,3775.4,0.56]
[1717359348719,0.02655326,3775.5,3775.4,0.56]
[1717359349010,12.25313,3776.1,3775.4,0.56]
[1717359349213,0.02655326,3775.5,3775.4,0.56]
[1717359349813,12.25313,3776.1,3775.4,0.56]
[1717359350013,0.02655326,3775.5,3775.4,0.56]
[1717359350518,12.25313,3776.1,3775.4,0.56]
[1717359350678,0.02655326,3775.5,3775.4,0.56]
[1717359350877,12.25313,3776.1,3775.4,0.56]
[1717359351115,0.02655326,3775.5,3775.4,0.56]
[1717359351419,12.25313,3776.1,3775.4,0.56]
[1717359351575,0.02655326,3775.5,3775.4,0.56]
[1717359352190,12.25313,3776.1,3775.4,0.56]
[1717359352491,13.478443,3776.1,3775.4,0.56]
[1717359352708,0.02655326,3776.0,3775.4,0.56]
[1717359354783,2.64841,3775.9,3775.4,0.56]
[1717359354981,2.64841,3775.9,3775.1,2.64887]
[1717359355222,0.02644508,3775.8,3775.1,3.20887]
[1717359355890,0.02644508,3775.8,3775.1,3.15887]
[1717359356186,1.43295189,3775.8,3775.1,3.15887]
[1717359356486,0.02644508,3775.8,3775.1,3.15887]
[1717359358012,2.64859,3775.6,3774.7,2.64919]
[1717359358212,2.64859,3775.6,3775.2,0.56]
[1717359358517,0.02644508,3775.5,3775.2,0.56]
[1717359361217,0.02644508,3775.5,3775.1,0.56]
[1717359361598,0.02644508,3775.5,3775.3,0.56]
[1717359361798,4.99239,3775.9,3775.3,0.56]
[1717359362098,0.499239,3775.8,3775.3,0.56]
[1717359362294,0.52568408,3775.8,3775.3,0.56]
[1717359365707,2.64852,3775.7,3775.0,2.64898]
[1717359365891,2.6747442,3775.7,3775.2,0.56]
[1717359366227,3.22654252,3775.7,3775.2,0.56]
[1717359370297,3.22654252,3775.7,3774.8,2.3435]
[1717359370903,3.22654252,3775.7,3775.1,0.56]
[1717359371105,3.22654252,3775.7,3774.8,2.3435]
[1717359371500,3.22654252,3775.7,3775.1,0.56]
[1717359371701,0.55705425,3775.6,3775.1,0.56]
[1717359372337,0.55705425,3775.6,3774.8,2.3435]
[1717359372338,0.0262242,3775.5,3774.8,2.3435]
[1717359372635,0.0262242,3775.5,3775.0,0.56]
[1717359372993,2.64852,3775.7,3775.0,0.56]
[1717359373233,0.0262242,3775.4,3775.0,0.56]
[1717359373441,2.64852,3775.7,3774.8,2.3435]
[1717359373605,0.0262242,3775.3,3774.8,2.3435]
[1717359373805,2.64852,3775.7,3775.3,0.56]
[1717359374224,2.64852,3775.7,3774.8,2.3435]
[1717359374429,2.64852,3775.7,3775.2,0.56]
[1717359375506,2.64852,3775.7,3774.8,2.3435]
[1717359375720,0.499252,3775.6,3775.1,0.56]
[1717359378141,2.409,3775.5,3774.9,0.56]
[1717359379722,5.01432,3775.7,3775.3,0.56]
[1717359380204,5.01432,3775.7,3775.1,0.56]
[1717359381304,2.64852,3775.7,3775.1,0.56]
[1717359382265,5.0141,3776.0,3775.1,0.56]
[1717359382421,5.0141,3776.0,3775.5,0.56]
[1717359382622,2.6483,3776.0,3775.5,0.56]
[1717359383453,2.6483,3776.0,3775.3,2.8722]
[1717359384325,5.57807791,3777.9,3775.9,0.56]
[1717359384523,0.57239378,3777.8,3776.8,4.95992]
[1717359384773,0.29381938,3777.7,3776.8,4.95992]
[1717359384991,0.56,3777.4,3776.4,2.64799]
[1717359385276,0.29381938,3777.7,3776.4,2.64801]
[1717359385468,0.56,3777.6,3776.6,0.56]
[1717359385677,1.09066994,3777.6,3776.6,0.56]
[1717359386326,0.53066994,3777.6,3776.4,2.64801]
[1717359386557,0.53066994,3777.6,3776.7,0.56]
[1717359387476,0.0247862,3777.5,3776.7,0.56]
[1717359387634,0.44092755,3777.4,3776.7,3.20776]
[1717359388034,0.44092755,3777.4,3776.7,2.64776]
[1717359388269,0.0247862,3777.3,3776.7,2.64776]
[1717359388431,0.0247862,3777.3,3776.7,3.20776]
[1717359388962,0.0247862,3777.3,3776.7,2.64776]
[1717359389131,0.0247862,3777.3,3776.9,0.56]
[1717359390264,0.0247862,3777.3,3777.0,2.64759]
[1717359390696,0.0247862,3777.3,3777.1,0.56]
[1717359392209,0.0247862,3777.3,3777.2,2.64746]
[1717359392501,0.29381938,3777.7,3777.2,2.64746]
[1717359392705,0.02542609,3777.3,3777.2,2.64746]
[1717359392865,2.3505,3778.3,3777.5,2.64723]
[1717359393065,0.02572342,3778.2,3777.5,3.20723]
[1717359393261,0.02572342,3778.2,3777.7,0.56]
[1717359395582,0.01237717,3778.2,3777.7,0.56]
[1717359395810,0.02559386,3778.2,3777.7,0.56]
[1717359397247,0.56320325,3778.2,3777.7,0.56]
[1717359397401,3.56320325,3778.2,3777.7,0.56]
[1717359397606,0.56320325,3778.2,3777.9,0.56]
[1717359397827,0.02559386,3778.2,3777.9,0.56]
[1717359398235,2.3505,3778.7,3777.8,2.64704]
[1717359398540,0.0256434,3778.6,3777.8,2.64704]
[1717359398706,0.59361434,3778.5,3777.8,2.64704]
[1717359399143,0.0256434,3778.4,3777.8,2.64704]
[1717359400310,0.0256434,3778.4,3777.9,0.56]
[1717359400939,0.0256434,3778.4,3778.1,0.56]
[1717359401503,3.0,3778.8,3778.1,0.56]
[1717359401704,1.37348706,3778.7,3778.1,0.56]
[1717359403211,0.02586406,3778.7,3778.1,0.56]
[1717359403610,2.64638,3778.8,3777.9,0.56]
[1717359403839,0.02586406,3778.6,3777.9,0.56]
[1717359408371,2.37636406,3778.6,3777.8,2.64704]
[1717359408547,2.37636406,3778.6,3777.8,3.20704]
[1717359409536,0.85827441,3778.5,3777.8,3.20704]
[1717359409783,3.88417897,3778.5,3777.8,3.20704]
[1717359410498,3.88417897,3778.5,3778.0,0.56]
[1717359410639,3.88417897,3778.5,3777.8,3.20704]
[1717359417309,2.64663,3778.4,3777.6,0.56]
[1717359417496,0.8881309,3778.3,3777.8,0.56]
[1717359417704,0.02585053,3778.2,3777.8,0.56]
[1717359418078,0.8881309,3778.3,3777.8,0.56]
[1717359418575,2.64704,3777.8,3777.4,0.56]
[1717359418780,2.64704,3777.8,3776.8,2.4588]
[1717359418990,0.02586407,3777.7,3777.0,0.56]
[1717359420030,2.64726,3777.5,3777.0,0.56]
[1717359420233,2.91457241,3777.5,3777.2,0.56]
[1717359420432,0.02571095,3777.4,3777.2,0.56]
[1717359422013,0.02571095,3777.4,3776.8,2.4588]
[1717359422521,0.02571095,3777.4,3777.0,0.56]
[1717359422728,0.29300805,3777.4,3777.0,0.56]
[1717359423349,2.6474,3777.3,3776.4,2.4321]
[1717359423540,2.67302988,3777.3,3776.6,0.56]
[1717359424136,2.67302988,3777.3,3776.4,2.4321]
[1717359424355,2.67302988,3777.3,3776.6,0.56]
[1717359424534,0.26730299,3777.2,3776.6,0.56]
[1717359424762,2.64755,3777.1,3776.4,2.4321]
[1717359425073,2.64755,3777.1,3776.4,2.9921]
[1717359425220,2.6477,3776.9,3776.0,2.4321]
[1717359425561,2.64782,3776.7,3776.0,2.4321]
[1717359425763,2.64782,3776.7,3776.0,2.9921]
[1717359425965,2.64782,3776.7,3776.0,2.4321]
[1717359426270,0.29029926,3776.6,3775.9,0.56]
[1717359427326,0.29029926,3776.6,3775.6,2.4321]
[1717359427652,2.64795,3776.5,3775.9,0.56]
[1717359428047,0.02539112,3776.4,3775.9,0.56]
[1717359428258,0.02539112,3776.4,3775.6,2.4321]
[1717359428563,0.02539112,3776.4,3775.8,0.56]
[1717359429163,2.64811,3776.3,3775.6,2.4321]
[1717359429365,0.02523792,3776.3,3775.6,2.4321]
[1717359429565,2.64785,3776.7,3776.2,0.56]
[1717359431251,2.64785,3776.7,3776.0,0.56]
[1717359432333,0.02464327,3776.6,3776.0,0.56]
[1717359432631,0.02464327,3776.6,3775.6,2.4321]
[1717359432632,2.64801,3776.5,3775.8,0.56]
[1717359432862,2.64817,3776.2,3775.8,0.56]
[1717359433247,0.02460723,3776.1,3775.8,0.56]
[1717359433433,0.02460723,3776.1,3775.7,0.56]
[1717359433790,0.02460723,3776.1,3775.1,2.2924]
[1717359434474,0.02460723,3776.1,3775.6,0.56]
[1717359434864,2.64864,3775.6,3775.1,2.2924]
[1717359435070,2.64864,3775.6,3774.6,3.06372033]
[1717359435071,0.56,3775.3,3774.7,2.2924]
[1717359435383,2.64864,3775.6,3774.7,2.2924]
[1717359435384,3.20864,3775.6,3774.7,2.2924]
[1717359435718,2.64874,3775.4,3774.7,2.2924]
[1717359436199,0.02435936,3775.3,3774.7,2.2924]
[1717359437011,0.02435936,3775.3,3774.6,0.41444033]
[1717359437218,2.64889,3775.2,3774.6,0.41444033]
[1717359437370,2.67290676,3775.2,3774.6,0.97444033]
[1717359437815,2.99728284,3775.2,3774.6,0.41444033]
[1717359440512,2.64913,3774.9,3774.6,0.41444033]
[1717359440883,0.02366513,3774.8,3774.6,0.41444033]
[1717359442914,0.02366513,3774.8,3774.7,0.56]
[1717359443298,2.64883,3775.3,3774.7,0.56]
[1717359443552,0.0236471,3774.8,3774.7,0.32668403]
[1717359443687,7.27,3775.5,3774.8,2.64913]
[1717359443880,7.27,3775.5,3775.4,0.56]
[1717359444509,7.27,3775.5,3775.2,0.56]
[1717359445089,7.27,3775.5,3774.9,0.62326544]
[1717359445425,7.27,3775.5,3774.8,2.64913]
[1717359445630,7.27,3775.5,3774.9,0.56]
[1717359446004,7.27,3775.5,3774.8,2.64913]
[1717359446891,2.64853,3775.7,3774.8,2.64913]
[1717359447487,0.02363808,3775.6,3774.8,2.64913]
[1717359447691,0.02363808,3775.6,3774.8,3.21739544]
[1717359449828,0.02363808,3775.6,3775.1,2.64892]
[1717359450034,3.0,3776.0,3775.1,2.64892]
[1717359450242,0.02363808,3775.5,3775.1,2.64892]
[1717359450408,3.0,3776.0,3775.2,0.512242]
[1717359450603,0.02363808,3775.4,3775.2,0.512242]
[1717359450937,3.0,3776.0,3775.2,0.512242]
[1717359451418,0.02363808,3775.9,3775.2,0.512242]
[1717359451840,2.64829,3776.1,3775.2,0.512242]
[1717359451994,0.02363808,3775.8,3775.2,0.512242]
[1717359452198,2.64829,3776.1,3775.3,0.5634662]
[1717359452399,0.02363808,3775.7,3775.3,0.5634662]
[1717359452606,2.64829,3776.1,3775.3,0.5634662]
[1717359453015,0.02363808,3776.0,3775.3,0.5634662]
[1717359458452,0.02363808,3776.0,3775.1,2.64892]
[1717359459061,2.64849,3775.8,3775.1,2.64892]
[1717359459664,0.02372375,3775.7,3775.1,2.64892]
[1717359460915,0.02372375,3775.7,3775.0,2.4735]
[1717359464159,2.6486,3775.6,3774.8,3.21740544]
[1717359464345,0.02367866,3775.5,3774.8,3.21740544]
[1717359465920,0.02367866,3775.5,3775.0,0.56]
[1717359468654,2.64872,3775.4,3774.8,3.20914]
[1717359468841,2.67211911,3775.4,3774.8,3.20914]
[1717359469571,2.67211911,3775.4,3774.9,0.56]
[1717359474745,2.67211911,3775.4,3774.9,0.55513672]
[1717359475177,3.16917102,3775.4,3774.8,2.64914]
[1717359475362,3.16917102,3775.4,3774.8,3.20914]
[1717359476633,3.16917102,3775.4,3774.8,2.64914]
[1717359477091,3.16917102,3775.4,3774.8,3.20914]
[1717359477937,3.16917102,3775.4,3774.8,2.64914]
[1717359478241,3.16917102,3775.4,3774.8,3.20914]
[1717359480385,0.02339911,3775.4,3774.8,2.64914]
[1717359480690,2.64851,3775.7,3775.2,0.56]
[1717359480843,0.02331341,3775.3,3775.2,0.56]
[1717359481043,2.64851,3775.7,3775.2,0.56]
[1717359481244,0.02331341,3775.3,3775.0,0.56]
[1717359481542,0.02331341,3775.2,3775.0,0.56]
[1717359481795,0.264851,3775.6,3775.0,0.56]
[1717359482292,0.02331341,3775.5,3775.0,0.56]
[1717359482840,2.64851,3775.7,3775.0,0.56]
[1717359483070,0.02331341,3775.4,3774.8,2.64914]
[1717359483286,2.64851,3775.7,3775.1,0.56]
[1717359483488,0.02331341,3775.3,3775.1,0.56]
[1717359483782,0.02331341,3775.2,3775.1,0.56]
[1717359483988,3.871831,3775.7,3775.1,0.56]
[1717359484297,0.02331341,3775.2,3775.1,0.56]
[1717359484456,3.871831,3775.7,3775.1,0.56]
[1717359484697,0.02331341,3775.2,3775.1,0.56]
[1717359484981,3.871831,3775.7,3774.8,2.64914]
[1717359485184,0.02331341,3775.2,3775.0,0.56]
[1717359485379,2.64851,3775.7,3775.0,0.56]
[1717359485684,0.02331341,3775.1,3775.0,0.56]
[1717359485881,2.64851,3775.7,3775.0,0.56]
[1717359486183,0.02345773,3775.1,3775.0,0.56]
[1717359486373,2.64851,3775.7,3775.0,0.56]
[1717359486685,0.02345773,3775.6,3775.2,0.56]
[1717359486887,0.02345773,3775.6,3775.4,0.56]
[1717359487050,9.91831,3776.0,3775.4,0.56]
[1717359487051,7.27,3776.0,3775.4,0.56]
[1717359487244,2.6481,3776.3,3775.8,0.56]
[1717359489594,4.96259,3776.6,3775.8,0.56]
[1717359489763,3.0,3776.5,3775.8,0.56]
[1717359490793,3.0,3776.5,3775.6,0.56]
[1717359493802,2.64806,3776.4,3775.6,0.56]
[1717359495969,2.64806,3776.4,3775.7,2.357]
[1717359496220,3.46966949,3776.4,3775.7,2.357]
[1717359496433,2.64781,3776.7,3776.3,0.56]
[1717359497413,2.64781,3776.7,3776.2,2.357]
[1717359502388,0.02318097,3776.6,3776.2,2.357]
[1717359529987,2.64795,3776.5,3776.2,2.357]
[1717359530582,2.67158357,3776.5,3776.2,2.357]
[1717359532243,2.64815,3776.3,3775.7,2.3241]
[1717359532445,2.64815,3776.3,3775.7,2.8841]
[1717359532629,0.02363357,3776.2,3775.7,2.8841]
[1717359536954,2.64823,3776.1,3775.4,2.3241]
[1717359537264,0.0234938,3776.0,3775.5,0.56]
[1717359537959,0.0234938,3776.0,3775.4,2.3241]
[1717359538270,0.0234938,3776.0,3775.5,0.56]
[1717359539038,0.0234938,3776.0,3775.7,0.56]
[1717359542504,0.0234938,3776.0,3775.5,0.56]
[1717359545005,0.0234938,3776.0,3775.4,2.3241]
[1717359545168,2.64841,3775.9,3774.9,2.64906]
[1717359545516,2.67171441,3775.9,3775.1,0.56]
[1717359545964,2.67171441,3775.9,3775.0,2.4011]
[1717359546467,2.67171441,3775.9,3775.1,0.56]
[1717359547394,2.6486,3775.6,3775.0,2.4011]
[1717359547789,0.02323676,3775.5,3775.1,0.56]
[1717359548106,2.6486,3775.6,3775.1,0.56]
[1717359548694,2.6486,3775.6,3774.8,2.4011]
[1717359549015,2.6486,3775.6,3775.2,0.56]
[1717359549512,2.64878,3775.4,3774.8,2.4011]
[1717359549816,2.64878,3775.4,3774.8,2.9611]
[1717359550009,2.64878,3775.4,3774.8,2.4011]
[1717359550315,2.64878,3775.4,3774.8,0.56]
[1717359550611,5.14383,3775.2,3774.5,2.4713]
[1717359550810,5.714213,3775.2,3774.5,2.4713]
[1717359551700,5.714213,3775.2,3774.6,0.56]
[1717359552013,5.714213,3775.2,3774.3,5.12079]
[1717359552315,5.714213,3775.2,3774.5,0.56]
[1717359553092,5.714213,3775.2,3774.3,5.12079]
[1717359553310,5.714213,3775.2,3774.7,0.56]
[1717359553579,5.14383,3775.2,3774.7,0.56]
[1717359556744,2.4949,3775.5,3774.9,0.56]
[1717359556948,2.64865,3775.6,3775.1,0.56]
[1717359557838,2.64865,3775.6,3774.9,0.56]
[1717359559357,2.64865,3775.6,3775.1,0.56]
[1717359560466,7.27,3775.9,3775.3,0.56]
[1717359560670,2.69986,3776.0,3775.3,3.0313]
[1717359560839,3.219336,3776.0,3775.5,0.56]
[1717359561048,2.69986,3776.0,3775.5,0.56]
[1717359561352,2.69986,3776.0,3775.9,0.56]
[1717359561353,0.0515,3776.0,3775.9,0.56]
[1717359563250,0.07469614,3776.0,3775.9,0.56]
[1717359563600,0.07469614,3776.0,3775.9,3.3574505]
[1717359565871,0.0515,3776.0,3775.9,3.3574505]
[1717359566434,2.64747,3777.2,3776.2,2.6481]
[1717359566560,2.64747,3777.2,3776.5,0.56]
[1717359566746,0.02329984,3777.1,3776.5,0.56]
[1717359570009,0.02329984,3777.1,3776.6,2.4719]
[1717359572282,0.02329984,3777.1,3776.6,2.4204]
[1717359572876,0.58329984,3777.1,3776.2,3.2081]
[1717359573285,3.22507682,3777.1,3776.2,3.2081]
[1717359573984,2.66507682,3777.1,3776.2,3.2081]
[1717359574790,2.64761,3777.0,3776.2,3.2081]
[1717359574951,2.6710496,3777.0,3776.2,3.2081]
[1717359576288,2.6710496,3777.0,3776.1,0.56]
[1717359576447,0.53128266,3776.9,3776.1,0.56]
[1717359577087,0.0234396,3776.8,3776.1,0.56]
[1717359577650,2.64782,3776.7,3775.8,2.6484]
[1717359577860,2.64782,3776.7,3776.0,0.56]
[1717359578158,0.0234396,3776.6,3776.0,0.56]
[1717359578996,2.786,3776.1,3774.1,0.02249521]
[1717359579196,2.64935,3774.5,3774.1,0.02249521]
[1717359579569,2.6491,3774.9,3774.3,0.56]
[1717359579753,0.0234396,3774.4,3774.1,0.02249521]
[1717359580064,2.6491,3774.9,3774.2,0.24943952]
[1717359580260,0.0234396,3774.3,3774.1,0.02249521]
[1717359580466,2.6491,3774.9,3774.1,0.02249521]
[1717359580875,0.02322305,3774.8,3774.1,0.02249521]
[1717359581088,3.20923,3774.7,3774.1,0.02249521]
[1717359582455,2.6495,3774.3,3774.1,0.02249521]
[1717359589792,2.6495,3774.3,3772.3,0.414663]
[1717359589793,2.65076,3772.5,3772.3,0.414663]
[1717359590101,2.65076,3772.5,3770.6,12.45]
[1717359590102,2.65107,3772.1,3770.8,2.65193]
[1717359590293,2.65129,3771.8,3770.8,2.65193]
[1717359590687,2.65129,3771.8,3770.4,6.48291]
[1717359590889,2.65129,3771.8,3770.5,0.66094052]
[1717359591069,2.65129,3771.8,3770.5,0.83576234]
[1717359593507,2.65129,3771.8,3770.6,0.55]
[1717359595781,2.65129,3771.8,3770.7,2.65201]
[1717359595985,2.65129,3771.8,3770.8,0.55]
[1717359596184,2.65129,3771.8,3770.9,0.375201]
[1717359596392,2.65129,3771.8,3771.0,0.55]
[1717359602112,2.65099,3772.2,3771.0,3.20178]
[1717359602277,3.0,3772.1,3771.0,3.20178]
[1717359604698,2.65112,3772.0,3771.0,3.20178]
[1717359604899,2.65112,3772.0,3771.1,0.3576981]
[1717359608047,2.65112,3772.0,3771.2,2.65165]
[1717359608244,2.65112,3772.0,3771.3,0.55]
[1717359612606,2.65112,3772.0,3771.1,0.3576981]
[1717359612926,2.65112,3772.0,3771.2,0.55]
[1717359613245,3.0,3772.1,3770.9,0.55]
[1717359613246,2.65133,3771.7,3770.9,0.55]
[1717359617160,3.67174,3771.4,3770.4,2.65216]
[1717359617922,1.0202,3771.3,3770.3,0.1264952]
[1717359618236,2.65217,3770.5,3770.3,0.1264952]
[1717359618434,0.399817,3770.4,3770.3,0.1264952]
[1717359618646,3.399817,3770.4,3770.3,0.1264952]
[1717359619248,3.97329764,3770.4,3770.3,0.1264952]
[1717359621063,3.97329764,3770.4,3768.6,2.65346]
[1717359621064,3.97329764,3770.4,3769.5,2.0264952]
[1717359621264,0.57348064,3770.3,3769.5,2.0264952]
[1717359621466,0.57348064,3770.5,3769.5,2.0264952]
[1717359621641,0.19194806,3770.4,3769.5,2.0264952]
[1717359622459,2.65263,3769.9,3769.5,2.0264952]
[1717359622630,5.65232,3770.3,3769.5,2.0264952]
[1717359624969,5.65232,3770.3,3769.2,2.65304]
[1717359625133,5.65232,3770.3,3769.3,0.55]
[1717359626872,5.65232,3770.3,3769.2,2.918344]
[1717359627178,2.65255,3770.0,3769.2,0.265304]
[1717359627352,3.0,3770.3,3768.5,2.3493]
[1717359627353,2.65281,3769.6,3768.5,2.3493]
[1717359629377,3.0,3769.9,3768.6,4.54947]
[1717359629554,3.0,3769.9,3769.0,2.65318]
[1717359629739,3.0,3769.9,3769.1,0.55]
[1717359631475,3.0,3769.9,3769.2,2.65305]
[1717359631663,3.0,3770.3,3769.3,0.55]
[1717359635958,2.65241,3770.2,3769.3,0.55]
[1717359636159,3.0,3770.1,3769.3,0.55]
[1717359637158,7.27,3770.9,3770.0,2.65249]
[1717359637367,2.65185,3771.0,3770.1,0.55]
[1717359638073,2.65185,3771.0,3770.2,2.65237]
[1717359638953,3.67177,3771.4,3770.2,2.65237]
[1717359639155,0.367177,3771.3,3770.2,2.65237]
[1717359640460,3.367177,3771.3,3770.2,2.65237]
[1717359642254,3.367177,3771.3,3770.5,2.65215]
[1717359642454,3.0,3771.3,3770.5,2.65215]
[1717359642894,4.0202,3771.7,3770.5,2.65215]
[1717359644969,2.6514,3771.6,3770.5,2.65215]
[1717359645324,3.0,3771.5,3770.5,2.65215]
[1717359648296,3.0,3771.5,3770.1,3.20241]
[1717359648605,0.40202,3771.4,3770.1,3.20241]
[1717359648889,1.0202,3771.7,3770.1,3.20241]
[1717359649392,2.65176,3771.1,3770.1,3.20241]
[1717359652403,3.0,3771.4,3769.9,2.4283]
[1717359652610,3.57341355,3771.3,3769.9,2.4283]
[1717359652859,3.0,3771.6,3769.9,2.4283]
[1717359652860,0.35734136,3771.2,3769.9,2.4283]
[1717359652985,0.5733944,3771.5,3769.9,2.4283]
[1717359653192,2.65185,3771.0,3769.9,2.4283]
[1717359654322,2.65204,3770.7,3769.9,2.4283]
[1717359655382,2.65204,3770.7,3769.9,0.4283]
[1717359655582,2.917244,3770.7,3769.9,0.4283]
[1717359656804,2.917244,3770.7,3769.7,2.65271]
[1717359660114,2.917244,3770.7,3769.8,2.4118]
[1717359660967,2.917244,3770.7,3769.9,2.65256]
[1717359662179,2.3071,3769.9,3768.2,2.4118]
[1717359662393,2.65297,3769.4,3768.3,2.6537]
[1717359662738,2.65308,3769.2,3768.3,2.6537]
[1717359663250,3.0,3769.1,3768.3,2.6537]
[1717359664451,2.65323,3769.0,3768.2,2.4118]
[1717359664661,2.65323,3769.0,3768.2,2.918374]
[1717359666140,3.0,3769.1,3767.9,2.4118]
[1717359666141,2.65354,3768.6,3767.9,2.4118]
[1717359667260,2.65326,3769.0,3767.9,2.4118]
[1717359667474,3.0,3768.9,3767.9,2.4118]
[1717359668291,3.0,3768.9,3768.1,2.4118]
[1717359668499,3.0,3768.9,3768.3,2.4118]
[1717359669958,7.27,3770.0,3768.4,3.6706]
[1717359670154,2.65264,3769.9,3769.0,2.3246]
[1717359670553,2.65234,3770.3,3769.1,2.65314]
[1717359671055,2.65234,3770.3,3769.4,2.65293]
[1717359672151,0.5224344,3770.6,3769.4,2.65293]
[1717359672353,2.65207,3770.7,3769.6,2.65278]
[1717359672557,2.65207,3770.7,3769.8,2.6526]
[1717359673597,3.0,3770.6,3769.8,2.6526]